Cogmind - Beta 15 @@@ ROGUE MODE // 2025.05.31 @ 18:09:35 Player: pakman Result: Destroyed by RS-ILT(R) with Subdweller Laser Performance ------------- Evolutions (0) 0 Regions Visited (2) 400 Robots Destroyed (19) 95 Value Destroyed (354) 354 Prototype IDs (0) 0 Alien Tech Used (0) 0 Bonus (0) 0 TOTAL SCORE: 849 Bonus ------- None Cogmind --------- Core Integrity 0/250 Matter 291/300 Energy 91/100 System Corruption 0% Temperature Cool (6) Movement Treading (160) Location -10/Subcaves Parts ------- > --- POWER (1) -------- (None) > --- PROPULSION (2) --- Light Treads > --- UTILITY (2) ------ Small Storage Unit Seismic Detector > --- WEAPON (2) ------- Subdweller Beam Cannon Barrage Gun > --- INVENTORY (8) ---- Light Nuclear Core Light Treads Light Treads Assault Rifle Assault Rifle Assault Rifle Light Assault Rifle Light Assault Rifle Peak State ------------ > --- POWER ------------ (None) > --- PROPULSION ------- Light Treads Light Treads > --- UTILITY ---------- Small Storage Unit Seismic Detector > --- WEAPON ----------- Subdweller Beam Cannon Barrage Gun > --- INVENTORY -------- Light Nuclear Core Light Treads Light Treads Assault Rifle Assault Rifle Assault Rifle Light Assault Rifle Light Assault Rifle [Rating: 10] Favorites ----------- Power Ion Engine Engine Ion Engine Propulsion Light Treads Treads Light Treads Utility Small Storage Unit Device Seismic Detector Storage Small Storage Unit Weapon Assault Rifle Energy Cannon Subdweller Beam Cannon Ballistic Gun Assault Rifle Build | -11 -10 -10 ------- Run | Yrd Mat Sub Slots Evolved . | . . . Power . | . . . Propulsion . | . . . Utility . | . . . Weapon . | . . . Parts Attached 14 | 7 4 3 Power 2 | 1 1 . Engine 2 | 1 1 . Core . | . . . Reactor . | . . . Propulsion 2 | 2 . . Treads 2 | 2 . . Leg . | . . . Wheel . | . . . Hover . | . . . Flight . | . . . Utility 4 | 2 1 1 Device 3 | 1 1 1 Storage 1 | 1 . . Processor . | . . . Hackware . | . . . Protection . | . . . Artifact . | . . . Weapon 6 | 2 2 2 Energy Gun . | . . . Energy Cannon 1 | . . 1 Ballistic Gun 5 | 2 2 1 Ballistic Cannon . | . . . Launcher . | . . . Special Weapon . | . . . Impact Weapon . | . . . Slashing Weapon . | . . . Piercing Weapon . | . . . Special Melee Weapon . | . . . Unidentified Prototypes . | . . . Parts Lost 4 | . 1 3 Power 1 | . . 1 Propulsion 1 | . . 1 Utility 2 | . 1 1 Weapon . | . . . Highest Loss Streak 2 | . 1 2 To Critical Strikes . | . . . Average Backups 5 | 1 5 7 Power 1 | . 1 1 Propulsion 2 | . 2 2 Utility . | . . . Weapon 1 | . . 3 Tool/Special . | . . . Unused Backups 7 | . 2 5 Power 2 | . 1 1 Propulsion 3 | . 1 2 Utility . | . . . Weapon 2 | . . 2 Tool/Special . | . . . Average Slot Usage (%) 93 | . 97 86 Engine 9 | . 14 2 Treads 27 | . 27 28 Device 12 | . 12 12 Storage 14 | . 14 14 Ballistic Gun 27 | . 28 26 Peak Build Rating 10 | 7 8 10 Average Rating 7 | 5 7 7 On Entrance 4 | . 7 7 Naked Turns . | . . . Heaviest Build 17 | 15 15 17 Greatest Support 40 | 40 40 40 Greatest Overweight (x) . | . . . Average Overweight (x) . | . . . Largest Inventory Capacity 8 | 8 8 8 Average Capacity 7 | 7 8 8 Most Carried 8 | 2 8 8 Average Carried 5 | 1 5 6 Final Capacity 8 | 8 8 8 Final Carried 8 | 2 7 8 Class Distribution -------------------- 100% | Mutant Dominant Class ---------------- Mutant | -10/Materials Mutant | -10/Subcaves Resources | -11 -10 -10 ----------- Run | Yrd Mat Sub Matter Collected 668 | 309 225 134 Remotely . | . . . Salvage Created 555 | 108 296 151 Parts 55 | 12 32 11 Haulers Intercepted 1 | . 1 . Recyclers Shooed . | . . . Parts Field Recycled . | . . . Retrieved Matter . | . . . Parts Self-Destructed . | . . . Prevented . | . . . Kills | -11 -10 -10 ------- Run | Yrd Mat Sub Combat Hostiles Destroyed 10 | . 7 3 Guns 10 | . 7 3 Classes Destroyed 7 | 1 5 1 Worker 2 | . 2 . Tunneler 5 | 5 . . Hauler 1 | . 1 . Watcher 1 | . 1 . Swarmer 3 | . 3 . Grunt 4 | . 4 . Subdweller 3 | . . 3 Best Kill Streak 5 | 1 5 1 Combat Bots Only 2 | . 2 1 Max Kills in Single Turn 1 | 1 1 1 Gunslinging . | . . . Exploded . | . . . Melee . | . . . Uniques/NPCs Destroyed . | . . . Combat | -11 -10 -10 -------- Run | Yrd Mat Sub Hostile Shots Fired 107 | . 68 39 Missed 25 | . 15 10 Hits 82 | . 53 29 Projectile 82 | . 53 29 Critical Strikes 1 | . . 1 Damage Taken 1122 | . 531 591 Core 256 | . 111 145 Absorbed by Shields . | . . . Regen/Repaired (Parts) 227 | . 227 . Core Remaining (%) 100 | 100 . . Volleys Fired 67 | 8 33 26 Largest 2 | 2 2 2 Hottest 108 | 40 40 108 Shots Fired 134 | 16 66 52 Gun 133 | 16 66 51 Cannon 1 | . . 1 Launcher . | . . . Special . | . . . Kinetic 133 | 16 66 51 Thermal 1 | . . 1 Explosive . | . . . Electromagnetic . | . . . Robot Hit Streak 35 | 2 7 35 Robot Miss Streak 7 | 3 7 2 Penetration Max . | . . . Secondary Targets 2 | . 2 . Max Gunslinging Chain 1 | . 1 . Shots Hit Robots 88 | 7 35 46 Core Hits 30 | 5 16 9 Critical Kills . | . . . Critical Parts Destroyed . | . . . Critical Strikes . | . . . Melee Attacks . | . . . Impact . | . . . Slashing . | . . . Piercing . | . . . Sneak Attacks . | . . . Combat Hostiles . | . . . Follow-up Attacks . | . . . Damage Inflicted 1029 | 103 450 476 Guns 1029 | 103 450 476 Cannons . | . . . Explosions . | . . . Melee . | . . . Ramming . | . . . Kinetic 1029 | 103 450 476 Thermal . | . . . Explosive . | . . . Electromagnetic . | . . . Impact . | . . . Slashing . | . . . Piercing . | . . . Highest Corruption . | . . . Average Corruption . | . . . Corruption Purged . | . . . Corruption Blocked . | . . . Overload Shots . | . . . Overflow Damage . | . . . Projectiles . | . . . Explosions . | . . . Melee . | . . . Knockbacks . | . . . Impact . | . . . Kinetic . | . . . Secondary . | . . . Self-Inflicted Damage . | . . . Shots . | . . . Rammed . | . . . Targets Rammed . | . . . Kicked . | . . . Crushed . | . . . Highest Temperature 18 | . 5 18 Average Temperature 5 | . 2 13 Received Heat Transfer 303 | . 171 132 Siege Activations . | . . . Martial Activations . | . . . Shielding Activations . | . . . Robots Disrupted . | . . . Combat Hostiles . | . . . Robots Corrupted . | . . . Combat Hostiles . | . . . Parts Fried . | . . . Impact Corruptions . | . . . Robots Melted . | . . . Combat Hostiles . | . . . Parts Melted . | . . . Heat Transferred . | . . . Parts Sabotaged . | . . . Parts Stolen . | . . . Parts Stripped . | . . . Power Chain Reactions . | . . . Alert | -11 -10 -10 ------- Run | Yrd Mat Sub Maximum Alert Level . | . . . Low Security (%) 100 | 100 100 . Level 1 . | . . . Level 2 . | . . . Level 3 . | . . . Level 4 . | . . . Level 5 . | . . . High Security . | . . . Max Security . | . . . Peak Influence 94 | 5 94 . Initial . | . . . Average 16 | . 19 . Influence Increases 244 | 25 219 . Destroy 0b10 Robot/C 140 | . 140 . Destroy 0b10 Robot/NC 45 | 25 20 . Destroy Leader 24 | . 24 . Trap Triggered on 0b10 10 | . 10 . Successful Hack 9 | . 9 . Destroy Structure 1 | . 1 . Partial Spotted 15 | . 15 . Influence Decreases 244 | 25 219 . Time Decay 234 | 25 209 . Lost Part 10 | . 10 . Squads Dispatched . | . . . Investigation . | . . . Extermination . | . . . Reinforcement . | . . . Assault . | . . . Garrison . | . . . Intercept . | . . . Searches Triggered . | . . . Construction Impeded . | . . . Haulers Reinforced . | . . . Active Scanning Responses . | . . . Cargo Convoy Interrupts . | . . . Stealth | -11 -10 -10 --------- Run | Yrd Mat Sub Distress Signals 2 | . 2 . Communications Jammed . | . . . Distress Signals . | . . . Times Spotted 19 | . 14 5 Peak Tracking Total 4 | . 4 2 Tactical Retreats . | . . . Traps | -11 -10 -10 ------- Run | Yrd Mat Sub Traps Triggered . | . . . Indirectly . | . . . Trap Hack Attempts . | . . . Triggered . | . . . Disarmed 4 | . 4 . Reprogrammed 6 | . 6 . Reused 1 | . 1 . Traps Extracted . | . . . Installed . | . . . Triggered 1 | . 1 . Machines | -11 -10 -10 ---------- Run | Yrd Mat Sub Machines Disabled . | . . . Max in Single Turn . | . . . Machines Repaired . | . . . Machines Dismantled . | . . . Machines Sabotaged . | . . . Overloaded Fab Kills . | . . . Hacking | -11 -10 -10 --------- Run | Yrd Mat Sub Machines Accessed 7 | . 7 . Terminals 6 | . 6 . Fabricators . | . . . Repair Stations 1 | . 1 . Recycling Units . | . . . Scanalyzers . | . . . Garrison Access . | . . . Total Hacks 23 | . 23 . Successful 15 | . 15 . Failed 8 | . 8 . Catastrophic 1 | . 1 . Database Lockouts . | . . . Manual 15 | . 15 . Terminals 19 | . 19 . Fabricators . | . . . Repair Stations 4 | . 4 . Recycling Units . | . . . Scanalyzers . | . . . Garrison Access . | . . . Terminal Hacks 6 | . 6 . Robot Analysis 2 | . 2 . Locate Traps 1 | . 1 . Disarm Traps 1 | . 1 . Reprogram Traps 1 | . 1 . Zone Layout 1 | . 1 . Fabricator Hacks . | . . . Repair Station Hacks 4 | . 4 . Scan Component 2 | . 2 . Repair 2 | . 2 . Recycling Unit Hacks . | . . . Scanalyzer . | . . . Garrison Access Hacks . | . . . Unauthorized Hacks 5 | . 5 . Terminals 5 | . 5 . Assimilate 1 | . 1 . Botnet 4 | . 4 . Fabricators . | . . . Repair Stations . | . . . Recycling Units . | . . . Scanalyzers . | . . . Garrison Access . | . . . Data Cores Recovered . | . . . Used . | . . . Hacking Detections 7 | . 7 . Full Trace Events . | . . . Feedback Events . | . . . Feedback Blocked . | . . . Robot Schematics Acquired . | . . . Robots Built . | . . . Authchips . | . . . Time . | . . . Total Robot Build Rating . | . . . Part Schematics Acquired . | . . . Parts Built . | . . . Authchips . | . . . Time . | . . . Total Part Build Rating . | . . . Parts Repaired 2 | . 2 . Time 52 | . 52 . Parts Recycled . | . . . Recycled Matter . | . . . Retrieved Matter . | . . . Retrieved Components . | . . . Parts Scanalyzed . | . . . Part Schematics Acquired . | . . . Parts Damaged . | . . . Bothacking | -11 -10 -10 ------------ Run | Yrd Mat Sub Used RIF Installer . | . . . Robots Hacked . | . . . Non-combat . | . . . Combat . | . . . Robot Hacks Applied . | . . . Relay Couplers Released . | . . . Fabnet Peak Effective % . | . . . Robots Rewired . | . . . Allies Hacked . | . . . Hacks Repelled . | . . . Allies | -11 -10 -10 -------- Run | Yrd Mat Sub Total Allies . | . . . Largest Group . | . . . Highest-Rated Group . | . . . Highest-Rated Ally . | . . . Total Orders . | . . . Ally Attacks . | . . . Total Damage . | . . . Kills . | . . . Allies Corrupted . | . . . Allies Melted . | . . . Intel | -11 -10 -10 ------- Run | Yrd Mat Sub Active Infowar (turns) 1238 | 14 773 451 Seismic 1238 | 14 773 451 Robot Analysis Total 2 | . 2 . Derelict Logs Recovered 1 | . . 1 Drone Launches . | . . . Drone Recoveries . | . . . Exploration | -11 -10 -10 ------------- Run | Yrd Mat Sub Turns Passed 1552 | 192 864 496 Spaces Moved 728 | 98 384 246 Core 2 | 2 . . Treads 726 | 96 384 246 Legs . | . . . Wheels . | . . . Hover . | . . . Flight . | . . . Fastest Speed 50 | 50 160 160 Average Speed 159 | 157 160 160 Slowest Speed 160 | 160 160 160 Overloaded Moves . | . . . Propulsion Burnouts . | . . . Robots Hopped . | . . . Potential Cave-ins . | . . . Cave-ins Triggered . | . . . Exploration Rate (%) 28 | 6 59 21 Regions Visited 2 Branch Regions 1 Pre-discovered Areas 1 | . . 1 Known Exits Taken . | . . . Unknown Exits Taken 2 | 1 1 . Scrap Searched . | . . . Spaces Dug . | . . . Terrain Destroyed 1 | . . 1 Melee . | . . . Projectile 1 | . . 1 AOE . | . . . Terrain Rammed . | . . . Walls Destroyed . | . . . Machines Disabled . | . . . Actions | -11 -10 -10 --------- Run | Yrd Mat Sub Total 990 | 116 569 305 Wait 164 | 2 134 28 Move 726 | 97 383 246 Hop . | . . . Pick Up 10 | 2 7 1 Fast Attach 11 | 7 3 1 Attach 1 | . . 1 Detach 1 | . . 1 Swap 5 | . 4 1 Drop 5 | . 5 . Fire 67 | 8 33 26 Melee . | . . . Ram . | . . . Kick . | . . . Crush . | . . . Escape Stasis . | . . . Rewire . | . . . Trap . | . . . Miscellaneous . | . . . Route ------- -11/Scrapyard -10/Materials (discovered 4 exits: [*Mat x2] / [*Min] / [*Sub]) -10/Subcaves (discovered 1 exit: Mat) History --------- Turn | Location | Event 27 | -11/Scrapyard | Discovered new exit (range 14) 193 | -11/Scrapyard | Entered Materials 314 | -10/Materials | Build established: Mutant 346 | -10/Materials | Discovered new exit (range 8) 538 | -10/Materials | Discovered new exit (range 20) 620 | -10/Materials | Discovered new exit (range 10) 934 | -10/Materials | Repaired Lgt. Treads 962 | -10/Materials | Repaired Lgt. Treads 987 | -10/Materials | Discovered new exit (range 5) 1057 | -10/Materials | Entered Subcaves 1058 | -10/Subcaves | Approached by a straggling Scientist 1059 | -10/Subcaves | Identified exit to Materials 1111 | -10/Subcaves | Core integrity fell below 50% 1201 | -10/Subcaves | Shifting Twisted Machinery released Barrage Gun 1206 | -10/Subcaves | Shifting Twisted Machinery released Sub. Machine Gun 1280 | -10/Subcaves | Core integrity fell below 20% 1451 | -10/Subcaves | Shifting Twisted Machinery released Sub. Beam Cannon 1461 | -10/Subcaves | Learned location of Zion (-6) 1461 | -10/Subcaves | Met a Zionite searching for "candidates" 1553 | -10/Subcaves | Destroyed by RS-ILT(R) with Subdweller Laser Last Messages --------------- 01296_ PA-25Q(R) destroyed. 01299_ Acquired 52 matter. 01310_ Subatomizers dissect the Sub. Laser. 0I-NBI(c): "I think it's somewhere northwest of here" 01324_ Subatomizers dissect the Sub. Laser. 01337_ Acquired 13 matter. 0I-NBI(c): "I think it's somewhere northwest of here" 01368_ Subatomizers dissect the Sub. Laser. 0I-NBI(c): "I think it's somewhere west of here" 01447_ UN-YHT(z): "She is not going to be happy we haven't found any suitable candidates yet." Sub. Beam Cannon falls loose from the Twisted Machinery. 01461_ UN-YHT(z): "Hey you! It's really dangerous down here, I feel that you could die at any moment. For your health and safety might I suggest a trip to Zion?" World map updated: -6/Zion. 0I-NBI(c): "I think it's somewhere northwest of here" 01496_ Acquired Sub. Beam Cannon. 0I-NBI(c): "I think it's somewhere northwest of here" 01552_ Lgt. Treads destroyed. Map ----- +----------------------------------------------------+ | ??????????????????????????????????## ##??????? | | ??????????????????????????????????# ##???????? | | ??????????????????????????????????# #??????### | | ??????????????????????????????????## ##?????# | | ???????????????????????????????????# ##???# | | ???????????????????????????????????## #???#### | | ????????????????????????????????????# #??????# | | ????????????????????????????????????# ####???? | | ????????????????????????????????????# #???? | | ????????????????????????????????????# ##???? | | ????????????????????????????????????# #????? | | ????????????????????????????????????## ## #????? | | ??????????????????????????????????#### ## ##????? | | ???????????????????????????????#### ###???? | | ???????????????????##??????##### ##??? | | ???????????????????# ####### ### #### | | ???????????????????# #### # | | ???????????????????# ## # | | ???????????????????# # ## #### """ # | | ????????????????# # ### #??# " " # | | ???????????????# R #?# #??# ## """ ## | | ?????????????? #### # #### #?# ### # #? | | ???????????? ????###;R ### #?## ##??#? | | ???????????# ????## z ## ???##????? | | ???????????# ?????## ## ## #????????? | | ???????????##??????# @ ## ## ????????? | | ???????????????????#### ???????? | | ??????????????????????# ???????? | | ????????????????????? ??????? | | ???????????????????? #?????? | | ??????????????????? #### ## ### ####?????? | | ?????????????????? ????## ##?## ##??# #????????? | | ?????????????????#??????####???####????##????????? | | ?????????????????????????????????????????????????? | | ?????????????????????????????????????????????????? | | ?????????????????????????????????????????????????? | | ?????????????????????????????????????????????????? | | ?????????????????????????????????????????????????? | | ?????????????????????????????????????????????????? | | ?????????????????????????????????????????????????? | | ?????????????????????????????????????????????????? | | ?????????????????????????????????????????????????? | | ?????????????????????????????????????????????????? | | ?????????????????????????????????????????????????? | | ?????????????????????????????????????????????????? | | ?????????????????????????????????????????????????? | | ?????????????????????????????????????????????????? | | ?????????????????????????????????????????????????? | | | | | +----------------------------------------------------+ Best States ------------- Heat Dissipation 25 Energy Generation 10 Energy Capacity 250 Matter Stores 300 Matter Capacity 300 Sight Range 16 Terrain Scan Density 10 Evasion (%) 40 Recoil Reduction 2 Item Schematics ----------------- None Robot Schematics ------------------ None Fabricated ------------ Nothing Repaired ---------- Lgt. Treads | 7% | -10/Materials Lgt. Treads | 30% | -10/Materials Alien Tech Used ----------------- None Achievements -------------- None Challenges ------------ None Game ------ Seed SalvageAntigravArmor Manual? 0 Play Time 00:14:43 Cumulative 62.9 hours Start 2025.05.31 @ 16:51:40 End 2025.05.31 @ 18:09:35 Sessions 3 Manual Loads 0 Difficulty Rogue Special Mode None Game No. 70 Rogue 70 Adventurer 0 Explorer 0 Win Type - Total 0 Types 0/0/0/0/0/0/0/0/0/0 Lore% 32 Gallery% 31 Achievement% 28 Wizard Run 0 Options --------- Layout 0 ASCII 0 Keyboard 1 Movement Numpad Keybinds 0 Fullscreen 2 Font 18/SmallcapsGlow Map View 76x50 Zoom Use 0% Tactical HUD 1 Map Filters NONE Filters NONE Steam 1 RUN: f9bb7cf5-edaa-4ab4-a202-8ae476c0bd09